bitfinex-derivatives/quotes_ETHF0:USTF0_20241017
["timestamp","ask_amount","ask_price","bid_price","bid_amount"]
[1729159392803,0.38172,2620.1,2619.9,0.78974]
[1729159393703,4.0401,2620.3,2619.9,0.408]
[1729159393903,0.95426,2620.2,2619.6,3.2078]
[1729159394092,0.95426,2620.2,2619.4,0.4167]
[1729159394093,0.3818,2619.5,2619.4,0.4167]
[1729159395593,1.2133,2619.7,2619.3,0.395]
[1729159395804,0.38182,2619.4,2619.3,0.395]
[1729159397403,1.2133,2619.7,2619.3,0.395]
[1729159397607,0.38182,2619.4,2619.3,0.77683]
[1729159397908,1.2133,2619.7,2619.3,0.77683]
[1729159398102,1.2133,2619.7,2619.3,0.395]
[1729159398299,1.2133,2619.7,2619.3,0.77683]
[1729159398507,1.2133,2619.7,2619.1,3.2078]
[1729159398703,0.38183,2619.4,2619.2,0.38184]
[1729159399411,0.38181,2619.5,2619.1,3.2078]
[1729159399604,0.38182,2619.4,2619.2,0.38184]
[1729159401511,1.2133,2619.7,2619.2,0.38184]
[1729159401910,0.38183,2619.4,2619.3,0.38183]
[1729159402101,0.38183,2619.4,2619.2,0.38184]
[1729159404912,1.2133,2619.7,2619.1,3.2078]
[1729159405409,0.38185,2619.2,2619.1,3.2078]
[1729159407704,41.75453,2619.5,2619.0,0.80418]
[1729159407908,0.38186,2619.1,2619.0,0.80418]
[1729159408810,0.38186,2619.2,2619.1,0.38186]
[1729159409010,0.38186,2619.1,2619.0,0.80417]
[1729159409216,0.38186,2619.2,2619.1,0.38186]
[1729159409703,0.38186,2619.1,2619.0,0.80417]
[1729159410205,42.0133,2619.7,2619.0,0.4223]
[1729159410410,0.399,2619.7,2619.2,6.1878]
[1729159410607,0.38182,2619.5,2619.4,0.38181]
[1729159411115,0.38182,2619.5,2619.4,0.79941]
[1729159412111,0.3818,2619.6,2619.4,0.79941]
[1729159412307,0.38179,2619.6,2619.4,0.79941]
[1729159413007,0.38179,2619.6,2619.4,0.4176]
[1729159413311,3.2078,2619.8,2619.6,0.38179]
[1729159413508,3.2078,2619.8,2619.7,0.38178]
[1729159413899,0.38172,2620.1,2619.9,0.38174]
[1729159414104,0.38172,2620.1,2620.0,0.4252]
[1729159416717,0.4197,2620.2,2620.0,0.4252]
[1729159416920,0.38172,2620.1,2620.0,0.4252]
[1729159418312,0.4197,2620.2,2620.0,0.4252]
[1729159418508,0.7692,2620.3,2620.0,0.80692]
[1729159418718,0.3817,2620.2,2620.0,0.80692]
[1729159419311,0.3817,2620.3,2620.0,0.80692]
[1729159419507,3.2078,2620.6,2620.0,0.4252]
[1729159419707,0.38167,2620.5,2620.0,0.4252]
[1729159420021,1.2335,2620.7,2620.0,0.4252]
[1729159420214,0.38164,2620.6,2620.1,3.2078]
[1729159420615,1.2335,2620.7,2620.3,0.38168]
[1729159420915,0.38165,2620.6,2620.4,0.77437]
[1729159421315,1.2335,2620.7,2620.4,0.3927]
[1729159421919,0.38166,2620.5,2620.4,0.3927]
[1729159422621,1.2335,2620.7,2620.4,0.3927]
[1729159423015,0.38166,2620.5,2620.4,0.3927]
[1729159424525,1.2335,2620.7,2620.4,0.3927]
[1729159424824,0.38165,2620.6,2620.4,0.3927]
[1729159425420,0.38165,2620.6,2620.4,0.77437]
[1729159425626,0.4049,2620.7,2620.4,0.3927]
[1729159426123,0.4049,2620.7,2620.5,0.4186]
[1729159426124,0.38164,2620.6,2620.5,0.4186]
[1729159426931,0.38164,2620.6,2620.4,0.77436]
[1729159427821,0.4049,2620.7,2620.4,0.3927]
[1729159427822,0.38166,2620.5,2620.4,0.3927]
[1729159428031,3.8195,2620.5,2620.1,3.58951]
[1729159428221,0.38169,2620.4,2620.1,3.58951]
[1729159428623,0.38169,2620.3,2620.1,3.58951]
[1729159429121,0.38168,2620.4,2620.1,3.2078]
[1729159429316,0.38167,2620.4,2620.2,0.38169]
[1729159429523,0.38169,2620.3,2620.1,3.58951]
[1729159430026,0.38169,2620.3,2620.1,0.38171]
[1729159430223,0.38169,2620.3,2620.1,3.58951]
[1729159430419,3.8195,2620.5,2620.1,3.58951]
[1729159430621,0.3817,2620.2,2620.1,0.38171]
[1729159431724,0.38167,2620.4,2620.1,0.38171]
[1729159431927,0.38171,2620.2,2620.1,0.38171]
[1729159434834,0.3817,2620.3,2620.2,0.38169]
[1729159435431,0.8395,2620.5,2620.3,0.38168]
[1729159435432,0.38168,2620.4,2620.3,0.38168]
[1729159435624,0.38167,2620.5,2620.4,0.38167]
[1729159436632,3.2078,2620.6,2620.3,0.395]
[1729159436832,3.2078,2620.6,2620.4,0.3892]
[1729159437024,3.58945,2620.6,2620.5,0.38166]
[1729159437628,3.58945,2620.6,2620.4,0.3892]
[1729159437825,3.58945,2620.6,2620.4,0.77086]
[1729159438625,3.2078,2620.6,2620.5,0.38166]
[1729159439028,0.4049,2620.7,2620.6,0.38164]
[1729159439437,3.6227,2620.9,2620.7,0.38162]
[1729159439627,3.2078,2620.9,2620.4,4.32338]
[1729159439832,3.2078,2620.9,2620.8,0.38162]
[1729159440330,3.5894,2620.9,2620.7,0.38162]
[1729159440636,3.2078,2620.9,2620.8,1.16262]
[1729159440940,0.3816,2620.9,2620.8,0.781]
[1729159441137,0.3969,2621.0,2620.8,0.781]
[1729159441138,0.3969,2621.0,2620.8,1.1626]
[1729159441437,3.2078,2621.2,2620.8,0.781]
[1729159441637,3.2078,2621.2,2620.9,0.77889]
[1729159441940,40.8,2621.1,2620.9,0.7789]
[1729159442131,40.8,2621.1,2620.9,0.3973]
[1729159442531,3.2078,2621.2,2621.0,0.38158]
[1729159442731,3.58937,2621.2,2620.9,0.77889]
[1729159442933,44.0078,2621.2,2620.9,0.77889]
[1729159443135,44.38936,2621.2,2620.9,0.77889]
[1729159443339,44.38936,2621.2,2620.9,0.3973]
[1729159443539,3.2078,2621.2,2621.0,0.38159]
[1729159444346,3.2078,2621.2,2620.9,0.3973]
[1729159444529,3.2078,2621.2,2621.0,0.38158]
[1729159444729,3.58936,2621.2,2620.9,0.3973]
[1729159444940,3.2078,2621.2,2621.0,0.38159]
[1729159446131,3.2078,2621.2,2620.9,0.3973]
[1729159446327,6.1878,2621.2,2620.8,0.781]
[1729159446531,0.3816,2620.9,2620.8,0.781]
[1729159446930,0.3816,2620.9,2620.3,3.2078]
[1729159446931,4.76923,2620.9,2620.3,3.2078]
[1729159447134,0.38168,2620.4,2620.1,0.8366]
[1729159447441,7.14185,2620.8,2620.1,0.8366]
[1729159447635,7.14185,2620.8,2620.2,0.3817]
[1729159447636,0.38168,2620.4,2620.2,0.3817]
[1729159448529,0.38168,2620.4,2620.1,0.8366]
[1729159448530,0.38168,2620.4,2620.3,0.38169]
[1729159448733,0.38169,2620.3,2620.2,0.3817]
[1729159450440,0.3817,2620.3,2620.2,0.3817]
[1729159451634,0.3817,2620.3,2620.1,4.0444]
[1729159451635,0.3817,2620.2,2620.1,3.2078]
[1729159452338,2.98,2620.5,2620.1,3.2078]
[1729159452640,2.98,2620.5,2620.0,0.38176]
[1729159452641,0.38176,2620.1,2620.0,0.38176]
[1729159455335,6.1878,2620.3,2619.8,0.3995]
[1729159455536,0.3818,2619.8,2619.7,0.7674]
[1729159456544,0.8134,2620.0,2619.8,0.38179]
[1729159456545,0.3818,2619.9,2619.8,0.38179]
[1729159458740,1.19518,2620.0,2619.9,0.38178]
[1729159459343,0.3818,2619.9,2619.8,0.38179]
[1729159461148,1.19518,2620.0,2619.9,0.38178]
[1729159461352,0.79308,2620.0,2619.9,0.38178]
[1729159461548,0.38178,2620.0,2619.9,0.38178]
[1729159462050,0.38168,2620.6,2620.3,0.38172]
[1729159462241,4.125,2620.8,2620.4,0.7987]
[1729159462446,0.3931,2621.0,2620.4,1.2159]
[1729159462447,0.4177,2620.9,2620.4,1.2159]
[1729159462754,0.3817,2620.5,2620.4,0.4021]
[1729159463141,0.3931,2620.5,2620.4,0.4021]
[1729159463341,0.7748,2620.5,2620.4,0.4021]
[1729159463741,0.3931,2620.5,2620.4,0.4021]
[1729159463950,0.7748,2620.5,2620.4,0.4021]
[1729159464147,0.3931,2620.5,2620.4,0.4021]
[1729159464540,0.7748,2620.5,2620.4,0.4021]
[1729159464745,0.3931,2620.5,2620.4,0.4021]
[1729159465756,3.2078,2620.6,2620.4,0.4021]
[1729159465945,3.2078,2620.6,2620.5,0.3817]
[1729159466746,3.2078,2620.6,2620.5,0.7885]
[1729159468457,0.4235,2620.8,2620.7,0.38167]
[1729159468662,0.80516,2620.8,2620.5,0.4068]
[1729159468853,0.4235,2620.8,2620.6,0.38168]
[1729159469050,0.80516,2620.8,2620.6,0.38168]
[1729159469547,0.4235,2620.8,2620.6,0.38168]
[1729159469947,0.80515,2620.8,2620.6,0.38168]
[1729159470152,0.4235,2620.8,2620.7,0.38167]
[1729159470351,0.4235,2620.8,2620.6,0.38167]
[1729159470352,0.80515,2620.8,2620.6,0.38167]
[1729159471057,0.80515,2620.8,2620.7,0.38167]
[1729159471561,4.62115,2620.8,2620.6,0.38167]
[1729159471861,0.80515,2620.8,2620.5,0.4068]
[1729159472061,0.4235,2620.8,2620.5,0.4068]
[1729159472553,0.80515,2620.8,2620.6,0.78617]
[1729159472754,0.80515,2620.8,2620.7,0.38167]
[1729159472755,0.4235,2620.8,2620.7,0.38167]
[1729159472964,0.80515,2620.8,2620.6,0.78617]
[1729159473662,0.4235,2620.8,2620.7,0.38167]
[1729159474257,4.2395,2620.8,2620.7,0.38167]
[1729159474656,4.62115,2620.8,2620.7,0.38167]
[1729159474857,4.2395,2620.8,2620.7,0.38167]
[1729159475160,0.4235,2620.8,2620.7,0.38167]
[1729159475565,0.80515,2620.8,2620.7,0.38167]
[1729159475762,0.4235,2620.8,2620.7,0.38167]
[1729159478163,0.80515,2620.8,2620.7,0.38167]
[1729159478866,0.4235,2620.8,2620.7,0.38167]
[1729159479057,0.80515,2620.8,2620.7,0.38167]
[1729159479548,0.4235,2620.8,2620.7,0.38167]
[1729159480148,0.80515,2620.8,2620.7,0.38167]
[1729159480557,0.4235,2620.8,2620.7,0.38167]
[1729159480755,0.80515,2620.8,2620.7,0.38167]
[1729159481060,0.4235,2620.8,2620.7,0.38167]
[1729159481757,0.80515,2620.8,2620.7,0.38167]
[1729159485860,2.17515,2620.8,2620.7,0.38167]
[1729159486768,1.7935,2620.8,2620.7,0.38167]
[1729159487065,2.17515,2620.8,2620.7,0.38167]
[1729159487563,2.17515,2620.8,2620.6,0.4045]
[1729159487765,2.17515,2620.8,2620.7,0.38167]
[1729159488162,1.7935,2620.8,2620.7,0.38167]
[1729159488366,2.17515,2620.8,2620.7,0.38167]
[1729159488559,1.7935,2620.8,2620.7,0.38167]
[1729159489265,2.17516,2620.8,2620.6,0.4045]
[1729159489574,2.17516,2620.8,2620.7,0.38167]
[1729159490759,1.96313144,2620.8,2620.7,0.38167]
[1729159490961,1.37,2620.8,2620.7,0.38167]
[1729159495066,1.37,2620.8,2620.6,0.4045]
[1729159495267,1.37,2620.7,2620.6,0.78618]
[1729159497561,1.37,2620.7,2620.4,0.4021]
[1729159497562,0.3817,2620.5,2620.4,0.4021]
[1729159497773,1.37,2620.5,2620.2,0.4154]
[1729159497975,1.75173,2620.3,2620.2,0.4154]
[1729159501875,4.5778,2620.3,2620.1,0.8348]
[1729159502071,1.75174,2620.2,2620.1,0.4261]
[1729159502577,2.74408431,2620.2,2620.1,0.4261]
[1729159502769,2.74408217,2620.2,2620.1,0.4261]
[1729159503277,2.15094,2620.2,2620.1,0.4261]
[1729159503672,0.78094,2620.2,2620.1,0.4261]
[1729159503872,2.15094,2620.2,2620.1,0.4261]
[1729159505479,2.74417944,2620.2,2620.1,0.4261]
[1729159505682,5.95197944,2620.2,2620.1,0.4261]
[1729159508275,2.74417944,2620.2,2620.1,0.4261]
[1729159508477,5.95197944,2620.2,2620.1,0.4261]
[1729159509179,3.80103944,2620.2,2620.1,0.4261]
[1729159509380,5.17103944,2620.2,2620.1,1.22706]
[1729159510573,3.80103944,2620.2,2620.1,2.59706]
[1729159510773,3.80103944,2620.2,2620.1,6.41386]
[1729159510979,3.2078,2620.2,2620.1,6.41386]
[1729159511887,4.5778,2620.2,2620.1,6.41386]
[1729159512387,4.5778,2620.2,2620.1,2.59706]
[1729159513190,4.95954,2620.2,2620.1,0.4261]
[1729159513374,5.7789,2620.2,2619.8,0.38179]
[1729159513580,1.75178,2619.9,2619.8,0.4011]
[1729159513881,1.37,2619.9,2619.8,0.7829]
[1729159514683,1.75178,2619.9,2619.8,0.7829]
[1729159514886,1.75178,2619.9,2619.8,0.4011]
[1729159515582,1.75178,2619.9,2619.8,0.7829]
[1729159517185,1.75178,2619.9,2619.8,0.4011]
[1729159525294,1.37,2619.9,2619.7,0.7913]
[1729159525490,1.7518,2619.8,2619.7,0.7913]
[1729159525791,3.2078,2620.0,2619.9,0.38178]
[1729159526092,3.2078,2620.0,2619.9,1.75178]
[1729159526500,3.2078,2620.0,2619.9,0.38178]
[1729159526794,4.5778,2620.0,2619.9,0.38178]
[1729159529004,3.2078,2620.0,2619.9,0.38178]
[1729159529999,3.2078,2620.0,2619.9,1.75178]
[1729159530490,1.37,2620.1,2620.0,0.38177]
[1729159530891,1.37,2620.1,2620.0,0.78167]
[1729159533093,1.75176,2620.1,2620.0,0.78167]
[1729159533293,1.37,2620.1,2620.0,0.78167]
[1729159536800,1.75176,2620.1,2620.0,0.78167]
[1729159537302,1.37,2620.1,2620.0,0.78167]
[1729159544295,0.59386078,2620.3,2620.2,0.38174]
[1729159544497,3.2078,2620.4,2620.2,1.75174]
[1729159544705,0.38169,2620.6,2620.5,0.3817]
[1729159544928,1.75169,2620.6,2620.5,0.3817]
[1729159546432,1.37,2620.6,2620.4,0.4103]
[1729159546737,1.37,2620.5,2620.4,0.79201]
[1729159550931,1.7517,2620.5,2620.4,0.79201]
[1729159551224,1.37,2620.5,2620.1,4.0195]
[1729159551426,0.38173,2620.3,2620.2,0.4131]
[1729159551635,0.38177,2620.0,2619.9,0.38178]
[1729159551833,0.95432,2620.3,2619.8,0.99862875]
[1729159551834,0.38178,2619.9,2619.8,0.99862875]
[1729159552124,0.3818,2619.8,2619.7,0.99862875]
[1729159552330,0.3818,2619.8,2619.5,0.38184]
[1729159552331,0.38184,2619.6,2619.5,0.38184]
[1729159552534,1.75184,2619.6,2619.5,0.38184]
[1729159552924,1.37,2619.6,2619.5,0.38184]
[1729159553328,0.8285,2619.9,2619.7,0.38181]
[1729159553329,1.21029,2619.9,2619.7,0.38181]
[1729159553531,1.37,2619.8,2619.7,0.38181]
[1729159553723,1.37,2619.8,2619.7,0.79961]
[1729159559121,44.79127,2620.1,2619.7,1.7878]
[1729159559412,1.37,2620.0,2619.9,0.38178]
[1729159563014,1.75178,2620.0,2619.8,0.38179]
[1729159563216,1.37,2619.9,2619.8,0.38179]
[1729159565813,1.37,2619.9,2619.8,0.79819]
[1729159570418,3.2078,2620.1,2619.8,1.7864]
[1729159570625,3.2078,2620.1,2620.0,1.75177]
[1729159570926,3.2078,2620.1,2619.9,1.37]
[1729159570927,1.37,2620.1,2619.9,1.37]
[1729159571116,1.37,2620.1,2620.0,0.80777]
[1729159573321,1.37,2620.1,2620.0,0.426]
[1729159573522,1.37,2620.1,2619.8,0.79819]
[1729159573523,0.38178,2619.9,2619.8,0.79819]
[1729159573823,1.75178,2620.0,2619.9,0.38178]
[1729159575124,0.38178,2619.9,2619.8,0.79819]
[1729159575833,3.2078,2620.2,2619.8,1.7864]
[1729159576133,0.38178,2620.0,2619.9,0.38177]
[1729159576823,0.38178,2619.9,2619.8,0.79818]
[1729159577121,1.37,2620.0,2619.8,0.4164]
[1729159577438,1.37,2620.0,2619.8,1.7864]
[1729159577626,0.38178,2619.9,2619.8,2.16818]
[1729159578238,1.75178,2620.0,2619.9,0.38178]
[1729159578438,0.38178,2620.0,2619.9,0.38178]
[1729159583248,0.38178,2619.9,2619.8,0.79819]
[1729159583546,1.75178,2619.9,2619.8,0.79819]
[1729159587037,1.75178,2619.9,2619.8,0.4164]
[1729159587242,0.38184,2619.5,2619.4,0.99862875]
[1729159587447,0.38186,2619.4,2619.3,0.3914]
[1729159587639,2.57136,2619.4,2619.3,0.3914]
[1729159587847,2.98106,2619.4,2619.3,0.3914]
[1729159588243,2.98106,2619.4,2619.3,0.77327]
[1729159596244,2.98106,2619.4,2619.3,0.38187]
[1729159602058,2.196,2619.4,2619.3,0.38187]
[1729159602258,2.57786,2619.4,2619.3,0.38187]
[1729159602553,2.196,2619.4,2619.3,0.38187]
[1729159603466,2.57786,2619.4,2619.3,0.38187]
[1729159606463,2.196,2619.4,2619.3,0.38187]
[1729159606864,2.57786,2619.4,2619.3,0.38187]
[1729159611468,2.196,2619.4,2619.1,0.4221]
[1729159611668,1.75189,2619.2,2619.1,0.804]
[1729159624176,1.78066,2619.4,2619.1,1.7921]
[1729159624177,0.826,2619.4,2619.1,1.7921]
[1729159624383,0.38187,2619.4,2619.3,0.38186]
[1729159624975,1.75187,2619.4,2619.3,0.38186]
[1729159626478,1.37,2619.4,2619.3,0.38186]
[1729159626978,1.75186,2619.4,2619.3,0.38186]
[1729159627181,1.37,2619.4,2619.3,0.38186]
[1729159627686,1.75186,2619.4,2619.3,0.38186]
[1729159627984,0.38188,2619.3,2619.2,0.38188]
[1729159628184,1.75188,2619.3,2619.2,0.38188]
[1729159629086,0.38189,2619.2,2619.1,0.4221]
[1729159629282,1.75189,2619.2,2619.1,0.4221]
[1729159629478,2.94749,2619.2,2619.1,0.4221]
[1729159630679,1.75189,2619.2,2619.1,0.804]
[1729159631686,1.37,2619.2,2619.1,0.4221]
[1729159631876,0.38188,2619.3,2619.2,0.38187]
[1729159632184,1.75189,2619.2,2619.1,0.80399]
[1729159634383,1.75189,2619.2,2619.1,0.4221]
[1729159635581,1.75189,2619.2,2619.1,0.804]
[1729159636091,0.59423905,2619.3,2619.1,0.4221]
[1729159636286,1.37,2619.3,2619.2,0.38189]
[1729159637586,1.75187,2619.3,2619.2,0.38189]
[1729159638892,0.38185,2619.5,2619.4,0.38185]
[1729159639081,1.75185,2619.5,2619.4,0.38185]
[1729159639282,0.59423905,2619.6,2619.5,0.38184]
[1729159639479,1.37,2619.9,2619.8,0.3818]
[1729159639681,1.37,2620.0,2619.7,1.37]
[1729159639892,1.37,2620.0,2619.9,0.38178]
[1729159639893,0.38178,2620.0,2619.9,0.38178]
[1729159640193,1.75178,2620.0,2619.9,0.38178]
[1729159640390,0.38179,2619.9,2619.8,0.38179]
[1729159641690,1.37,2619.9,2619.8,0.38179]
[1729159641895,1.37,2619.9,2619.8,0.3818]
[1729159643597,3.2078,2620.2,2620.1,0.38176]
[1729159643790,3.2078,2620.2,2620.1,1.75176]
[1729159644091,8.32860678,2620.6,2620.4,0.38171]
[1729159644092,4.95949,2620.6,2620.4,0.38171]
[1729159644291,4.95949,2620.6,2620.5,0.7807]
[1729159644492,1.37,2620.6,2620.5,0.7807]
[1729159645584,3.2078,2620.9,2620.5,1.769]
[1729159645896,4.95944,2620.9,2620.7,0.38167]
[1729159646103,4.95944,2620.9,2620.8,0.3883]
[1729159646486,4.95944,2620.9,2620.8,0.8046]
[1729159647792,0.38164,2620.9,2620.8,0.8046]
[1729159648195,0.38163,2621.0,2620.8,1.18625]
[1729159648709,0.38163,2621.0,2620.9,0.399]
[1729159649697,0.38162,2621.1,2620.9,0.78063]
[1729159649901,2.98,2621.2,2620.9,0.78063]
[1729159650099,0.38162,2621.1,2621.0,0.38162]
[1729159650402,2.98,2621.2,2621.0,0.38162]
[1729159650604,6.6089,2621.4,2621.0,0.38162]
[1729159650895,6.6089,2621.4,2620.9,0.399]
[1729159651101,0.38162,2621.1,2620.9,0.399]
[1729159651697,6.6089,2621.4,2620.9,0.399]
[1729159651698,0.38162,2621.0,2620.9,0.399]
[1729159652006,0.38161,2621.1,2620.9,0.78063]
[1729159652217,0.38161,2621.1,2621.0,0.38162]
[1729159652391,0.38161,2621.1,2620.9,0.78063]
[1729159655602,0.38162,2621.0,2620.9,0.399]
[1729159656008,0.38162,2621.0,2620.9,0.78064]
[1729159656805,0.38162,2621.1,2620.9,0.78064]
[1729159657605,2.98,2621.2,2620.9,0.78064]
[1729159657606,0.38162,2621.0,2620.9,0.78064]
[1729159660804,3.2078,2621.3,2621.0,0.38162]
[1729159661005,0.38162,2621.1,2621.0,0.38162]
[1729159661704,0.38162,2621.1,2620.9,0.399]
[1729159661905,3.2078,2621.3,2620.9,0.78063]
[1729159662499,0.38162,2621.0,2620.9,0.78063]
[1729159663607,3.2078,2621.3,2620.9,0.399]
[1729159663913,0.38162,2621.1,2621.0,0.38162]
[1729159664099,0.38162,2621.1,2620.9,0.78063]
[1729159664499,0.38162,2621.0,2620.9,0.78063]
[1729159665512,0.38162,2621.1,2621.0,0.38162]
[1729159666202,0.38162,2621.0,2620.9,0.78063]
[1729159666911,0.38162,2621.0,2620.9,0.399]
[1729159667111,0.38162,2621.0,2620.9,0.78064]
[1729159667805,1.75162,2621.0,2620.9,0.78064]
[1729159668018,1.75162,2621.0,2620.9,0.399]
[1729159668317,1.75162,2621.0,2620.9,0.78064]
[1729159672017,1.75162,2621.0,2620.9,0.399]
[1729159673420,1.75162,2621.0,2620.9,0.78064]
[1729159674219,1.75162,2621.0,2620.9,0.399]
[1729159675222,1.75162,2621.0,2620.9,0.78064]
[1729159675921,1.75162,2621.0,2620.9,0.399]
[1729159676512,1.75162,2621.0,2620.9,0.78064]
[1729159676923,1.75162,2621.0,2620.9,0.399]
[1729159678221,1.75162,2621.0,2620.9,0.78064]
[1729159682421,0.8407,2621.1,2620.9,0.399]
[1729159682627,0.38162,2621.0,2620.9,0.78063]
[1729159683713,2.2107,2621.1,2620.9,0.399]
[1729159684623,0.38162,2621.0,2620.9,0.78063]
[1729159684828,1.7861,2621.1,2620.9,0.399]
[1729159685229,0.38162,2621.0,2620.9,0.78063]
[1729159685627,0.38162,2621.0,2620.9,2.15063]
[1729159688922,1.00683892,2621.1,2620.9,1.769]
[1729159689229,0.59073892,2621.1,2621.0,1.75162]
[1729159689532,0.80267,2621.4,2621.1,0.38161]
[1729159689734,1.39340892,2621.4,2621.3,1.37]
[1729159689926,1.39340892,2621.4,2621.3,0.6111087]
[1729159690123,2.76340892,2621.4,2621.3,1.0165087]
[1729159690430,2.76340892,2621.4,2621.3,1.3980887]
[1729159690728,2.76340892,2621.4,2621.3,1.0165087]
[1729159690930,2.76340892,2621.4,2621.3,1.3980887]
[1729159691527,2.76340892,2621.4,2621.3,1.0165087]
[1729159692123,2.76340892,2621.4,2621.3,0.4054]
[1729159695323,2.38183892,2621.4,2621.2,2.1951]
[1729159695529,1.7963,2621.3,2621.1,1.37]
[1729159695832,1.7678,2621.2,2621.1,1.7516]
[1729159696134,2.1494,2621.2,2621.1,1.7516]
[1729159696526,0.38161,2621.1,2621.0,0.416]
[1729159696727,2.34234892,2621.1,2621.0,0.416]
[1729159696935,1.96073892,2621.1,2620.7,0.77146]
[1729159697125,1.96073892,2621.1,2620.7,2.14147]
[1729159697126,1.37,2620.8,2620.7,2.14147]
[1729159697330,1.37,2620.9,2620.8,0.38165]
[1729159697526,1.75164,2620.9,2620.8,0.38165]
[1729159698420,1.37,2620.9,2620.8,0.38165]
[1729159698929,1.75164,2620.9,2620.8,0.38165]
[1729159699732,0.38164,2620.9,2620.8,0.38165]
[1729159699929,1.75164,2620.9,2620.8,0.38165]
[1729159700734,1.75164,2620.9,2620.8,1.75165]
[1729159702333,0.38164,2620.9,2620.8,1.75165]
[1729159704734,2.14213,2621.0,2620.9,0.38164]
[1729159706428,0.77213,2621.0,2620.9,1.75164]
[1729159706830,2.34235892,2621.1,2621.0,0.38162]
[1729159707136,0.97235892,2621.1,2621.0,0.38162]
[1729159707333,0.97235892,2621.1,2621.0,0.80212]
[1729159708146,0.38162,2621.1,2621.0,0.80212]
[1729159711932,1.7678,2621.2,2621.0,0.4205]
[1729159712133,0.38161,2621.1,2621.0,1.21862]
[1729159712335,2.1494,2621.2,2621.1,0.38161]
[1729159712536,2.1494,2621.2,2621.1,0.80331]
[1729159713031,2.1494,2621.2,2621.1,0.4217]
[1729159713426,2.1494,2621.2,2621.1,1.7917]
[1729159713639,1.7516,2621.2,2621.1,1.7917]
[1729159715533,1.7516,2621.2,2621.1,0.4217]
[1729159718843,2.34233892,2621.2,2621.1,0.4217]
[1729159719748,2.34233892,2621.2,2621.1,0.80331]
[1729159720047,2.34233892,2621.2,2621.1,0.4217]
[1729159726045,5.77593892,2621.2,2620.5,3.2078]
[1729159726254,0.38163,2621.0,2620.9,0.38163]
[1729159726750,1.61463,2621.0,2620.9,0.38163]
[1729159727245,2.20536892,2621.0,2620.9,0.38163]
[1729159728449,2.1902296,2621.0,2620.9,0.38163]
[1729159730159,0.38164,2620.9,2620.8,1.75164]
[1729159743359,0.38164,2621.0,2620.9,0.38162]
[1729159744660,0.38164,2620.9,2620.5,1.82899529]
[1729159744855,1.37,2620.9,2620.5,0.827]
[1729159745157,0.38167,2620.8,2620.7,1.75166]
[1729159750469,0.38167,2620.7,2620.6,1.75167]
[1729159755869,0.38167,2620.7,2620.6,2.17417]
[1729159756875,0.38166,2620.8,2620.7,0.38165]
[1729159757066,0.38166,2620.8,2620.7,1.75165]
[1729159758076,0.38166,2620.8,2620.7,0.38165]
[1729159760465,0.38166,2620.8,2620.7,1.75165]
[1729159762674,0.38166,2620.8,2620.7,1.37]
[1729159762979,0.38166,2620.8,2620.7,1.75167]
[1729159765679,1.37,2620.8,2620.6,1.7925]
[1729159765888,3.58947,2620.7,2620.6,0.4225]
[1729159766183,5.50455921,2620.7,2620.6,0.4225]
[1729159766479,0.92675921,2620.7,2620.6,2.17418]
[1729159766681,0.38167,2620.7,2620.6,2.17418]
[1729159778699,0.38167,2620.8,2620.7,0.38166]
[1729159779299,0.38167,2620.8,2620.7,1.75166]
[1729159780001,3.58945,2620.9,2620.8,0.38165]
[1729159780201,3.58944,2620.9,2620.8,1.75165]
[1729159780505,3.2078,2620.9,2620.8,1.75165]
[1729159780708,3.58944,2620.9,2620.8,1.75165]
[1729159780905,3.2078,2620.9,2620.8,1.75165]
[1729159782313,3.5894,2621.2,2621.1,0.38161]
[1729159782500,4.13435571,2621.2,2621.1,1.75161]
[1729159783719,0.38162,2621.0,2620.9,2.97623]
[1729159784303,0.92656571,2621.1,2621.0,0.38162]
[1729159785213,0.92656571,2621.1,2620.9,1.2246]
[1729159785214,1.91495571,2621.1,2620.9,1.2246]
[1729159785514,0.38162,2621.0,2620.9,1.60623]
[1729159786011,0.38162,2621.0,2620.9,1.60624]
[1729159787110,0.38162,2621.0,2620.9,1.2246]
[1729159787608,0.38162,2621.0,2620.9,0.4265]
[1729159787609,1.75162,2621.0,2620.9,0.4265]
[1729159787908,1.75162,2621.0,2620.6,1.20237]
[1729159787909,0.38167,2620.7,2620.6,1.20237]
[1729159788209,0.38167,2620.7,2620.6,2.98857]
[1729159789508,1.7779,2621.0,2620.6,2.6069]
[1729159789809,0.38166,2620.8,2620.7,1.75165]
[1729159790409,0.38166,2620.8,2620.7,1.37]
[1729159790708,0.38166,2620.8,2620.7,1.75167]
[1729159796815,0.92670805,2620.8,2620.7,1.75167]
[1729159797018,0.38166,2620.8,2620.7,1.75167]
[1729159797312,0.92670805,2620.8,2620.7,1.75167]
[1729159797518,0.92670805,2620.8,2620.7,1.37]
[1729159798205,0.92670805,2620.8,2620.7,1.75167]
[1729159798619,0.92670805,2620.8,2620.7,1.37]
[1729159798913,0.92670805,2620.8,2620.7,1.75167]
[1729159799703,0.92670805,2620.8,2620.7,1.37]
[1729159800007,0.92670805,2620.8,2620.7,1.75167]
[1729159800318,0.92670805,2620.8,2620.7,1.37]
[1729159801315,0.92670805,2620.8,2620.7,1.75167]